[Event "Titled Tuesday Blitz June 29 2021"]
[White "tgpgoat"]
[Black "nfds"]
[WhiteElo "2326"]
[BlackElo "2494"]
[Result "0-1"]
[Round "07"]
[TimeControl "180+1"]
[Date "2021.06.29"]
[WhiteClock "0:00:05"]
[BlackClock "0:00:03"]

1. b3 {[%clk 0:03:00]}  Nf6 {[%clk 0:02:58]} 2. Bb2 {[%clk 0:03:00]}  c5 {[%clk 0:02:58]} 3. e3 {[%clk 0:02:59]}  Nc6 {[%clk 0:02:59]} 4. Nf3 {[%clk 0:02:57]}  g6 {[%clk 0:02:58]} 5. d4 {[%clk 0:02:56]}  Bg7 {[%clk 0:02:58]} 6. dxc5 {[%clk 0:02:56]}  Qa5+ {[%clk 0:02:41]} 7. Qd2 {[%clk 0:02:55]}  Qxc5 {[%clk 0:02:41]} 8. Bd3 {[%clk 0:02:54]}  O-O {[%clk 0:02:23]} 9. O-O {[%clk 0:02:52]}  d6 {[%clk 0:02:22]} 10. Nc3 {[%clk 0:02:50]}  Bg4 {[%clk 0:02:19]} 11. Be2 {[%clk 0:02:46]}  Rac8 {[%clk 0:02:15]} 12. Na4 {[%clk 0:02:43]}  Qf5 {[%clk 0:01:56]} 13. h3 {[%clk 0:02:33]}  Bxh3 {[%clk 0:01:48]} 14. gxh3 {[%clk 0:02:32]}  Qxh3 {[%clk 0:01:49]} 15. Rfd1 {[%clk 0:02:17]}  Ng4 {[%clk 0:01:23]} 16. Bxg7 {[%clk 0:02:13]}  Kxg7 {[%clk 0:01:24]} 17. e4 {[%clk 0:01:46]}  Nce5 {[%clk 0:01:12]} 18. Qf4 {[%clk 0:01:44]}  Rxc2 {[%clk 0:01:07]} 19. Nxe5 {[%clk 0:01:35]}  Nxe5 {[%clk 0:01:00]} 20. Rd2 {[%clk 0:01:27]}  Rfc8 {[%clk 0:00:55]} 21. Rad1 {[%clk 0:01:23]}  Rxd2 {[%clk 0:00:29]} 22. Rxd2 {[%clk 0:00:47]}  b5 {[%clk 0:00:28]} 23. Nb2 {[%clk 0:00:41]}  Rc1+ {[%clk 0:00:25]} 24. Nd1 {[%clk 0:00:40]}  h5 {[%clk 0:00:20]} 25. Rxd6 {[%clk 0:00:39]}  exd6 {[%clk 0:00:17]} 26. Qxc1 {[%clk 0:00:38]}  h4 {[%clk 0:00:16]} 27. Qe3 {[%clk 0:00:25]}  Qd7 {[%clk 0:00:13]} 28. Qf4 {[%clk 0:00:22]}  h3 {[%clk 0:00:11]} 29. Kh2 {[%clk 0:00:20]}  a6 {[%clk 0:00:10]} 30. Qe3 {[%clk 0:00:18]}  Qe6 {[%clk 0:00:09]} 31. Qxh3 {[%clk 0:00:18]}  Qf6 {[%clk 0:00:09]} 32. Qg3 {[%clk 0:00:17]}  Nc6 {[%clk 0:00:08]} 33. Ne3 {[%clk 0:00:17]}  Nd4 {[%clk 0:00:07]} 34. Bd1 {[%clk 0:00:12]}  Qe6 {[%clk 0:00:07]} 35. f3 {[%clk 0:00:11]}  a5 {[%clk 0:00:07]} 36. Nd5 {[%clk 0:00:12]}  a4 {[%clk 0:00:06]} 37. Qg2 {[%clk 0:00:11]}  axb3 {[%clk 0:00:05]} 38. axb3 {[%clk 0:00:12]}  Qe5+ {[%clk 0:00:05]} 39. Qg3 {[%clk 0:00:11]}  Qh5+ {[%clk 0:00:04]} 40. Kg2 {[%clk 0:00:10]}  Ne6 {[%clk 0:00:03]} 41. f4 {[%clk 0:00:10]}  Qxd1 {[%clk 0:00:02]} 42. f5 {[%clk 0:00:09]}  Qc2+ {[%clk 0:00:02]} 43. Kh3 {[%clk 0:00:07]}  Qxe4 {[%clk 0:00:02]} 44. fxe6 {[%clk 0:00:07]}  Qxe6+ {[%clk 0:00:02]} 45. Kg2 {[%clk 0:00:05]}  Qxd5+ {[%clk 0:00:03]} 46. Kh2 {[%clk 0:00:05]}  Qe5 {[%clk 0:00:03]} 0-1


[Site "https://www.chess.com"]

[Event "Titled Tuesday Blitz June 29 2021"]
[White "tteshan"]
[Black "arminmusovic"]
[WhiteElo "2371"]
[BlackElo "2537"]
[Result "0-1"]
[Round "07"]
[TimeControl "180+1"]
[Date "2021.06.29"]
[WhiteClock "0:02:10"]
[BlackClock "0:02:59"]

1. e4 {[%clk 0:03:00]}  c6 {[%clk 0:02:59]} 2. d4 {[%clk 0:03:00]}  d5 {[%clk 0:03:00]} 3. Nc3 {[%clk 0:03:01]}  dxe4 {[%clk 0:03:00]} 4. Nxe4 {[%clk 0:03:02]}  Nf6 {[%clk 0:03:01]} 5. Nxf6+ {[%clk 0:03:02]}  exf6 {[%clk 0:03:01]} 6. c3 {[%clk 0:03:02]}  Bd6 {[%clk 0:03:02]} 7. Bd3 {[%clk 0:03:03]}  O-O {[%clk 0:03:03]} 8. Qc2 {[%clk 0:03:03]}  Re8+ {[%clk 0:03:04]} 9. Ne2 {[%clk 0:03:03]}  Kh8 {[%clk 0:03:04]} 10. Be3 {[%clk 0:03:01]}  Nd7 {[%clk 0:03:05]} 11. O-O {[%clk 0:02:58]}  Nf8 {[%clk 0:03:05]} 12. Rfe1 {[%clk 0:02:55]}  Bg4 {[%clk 0:03:04]} 13. h3 {[%clk 0:02:54]}  Bh5 {[%clk 0:03:04]} 14. Nf4 {[%clk 0:02:55]}  Bg6 {[%clk 0:03:04]} 15. Rad1 {[%clk 0:02:52]}  Rc8 {[%clk 0:03:03]} 16. Bf5 {[%clk 0:02:51]}  Rc7 {[%clk 0:03:02]} 17. c4 {[%clk 0:02:47]}  Rce7 {[%clk 0:03:02]} 18. Nxg6+ {[%clk 0:02:44]}  hxg6 {[%clk 0:03:02]} 19. Bd3 {[%clk 0:02:37]}  Bb8 {[%clk 0:03:02]} 20. g3 {[%clk 0:02:35]}  Bxg3 {[%clk 0:02:59]} 21. fxg3 {[%clk 0:02:22]}  Rxe3 {[%clk 0:02:58]} 22. Rxe3 {[%clk 0:02:10]}  Rxe3 {[%clk 0:02:59]} 0-1


[Site "https://www.chess.com"]

[Event "Titled Tuesday Blitz June 29 2021"]
[White "ulkaf961"]
[Black "yobdc"]
[WhiteElo "2458"]
[BlackElo "2593"]
[Result "1-0"]
[Round "07"]
[TimeControl "180+1"]
[Date "2021.06.29"]
[WhiteClock "0:00:12"]
[BlackClock "0:00:01"]

1. d4 {[%clk 0:03:00]}  e6 {[%clk 0:02:59]} 2. c4 {[%clk 0:02:57]}  f5 {[%clk 0:02:59]} 3. Nc3 {[%clk 0:02:56]}  Nf6 {[%clk 0:02:59]} 4. Bf4 {[%clk 0:02:56]}  Bb4 {[%clk 0:02:59]} 5. e3 {[%clk 0:02:48]}  b6 {[%clk 0:02:52]} 6. Bd3 {[%clk 0:02:47]}  Bb7 {[%clk 0:02:52]} 7. f3 {[%clk 0:02:47]}  d6 {[%clk 0:02:32]} 8. Ne2 {[%clk 0:02:44]}  Nbd7 {[%clk 0:02:28]} 9. Bg3 {[%clk 0:02:41]}  Qe7 {[%clk 0:02:25]} 10. O-O {[%clk 0:02:38]}  Bxc3 {[%clk 0:02:25]} 11. Nxc3 {[%clk 0:02:37]}  O-O {[%clk 0:02:24]} 12. Qc2 {[%clk 0:02:31]}  Rf7 {[%clk 0:02:09]} 13. b4 {[%clk 0:02:31]}  a6 {[%clk 0:02:02]} 14. e4 {[%clk 0:02:27]}  fxe4 {[%clk 0:01:58]} 15. fxe4 {[%clk 0:02:25]}  e5 {[%clk 0:01:51]} 16. d5 {[%clk 0:02:25]}  Raf8 {[%clk 0:01:48]} 17. Bh4 {[%clk 0:02:24]}  h6 {[%clk 0:01:47]} 18. Ne2 {[%clk 0:02:21]}  g5 {[%clk 0:01:44]} 19. Be1 {[%clk 0:02:15]}  Nh5 {[%clk 0:01:33]} 20. Rxf7 {[%clk 0:02:14]}  Qxf7 {[%clk 0:01:33]} 21. Ng3 {[%clk 0:02:07]}  Nxg3 {[%clk 0:01:33]} 22. Bxg3 {[%clk 0:02:07]}  Qg7 {[%clk 0:01:25]} 23. h3 {[%clk 0:01:55]}  Bc8 {[%clk 0:01:22]} 24. Be2 {[%clk 0:01:42]}  Qe7 {[%clk 0:01:06]} 25. Bg4 {[%clk 0:01:32]}  Nf6 {[%clk 0:01:06]} 26. Bxc8 {[%clk 0:01:29]}  Rxc8 {[%clk 0:01:07]} 27. Rf1 {[%clk 0:01:28]}  Rf8 {[%clk 0:01:00]} 28. Rf5 {[%clk 0:01:24]}  Nh5 {[%clk 0:00:59]} 29. Bf2 {[%clk 0:01:14]}  Rxf5 {[%clk 0:00:49]} 30. exf5 {[%clk 0:01:14]}  Nf4 {[%clk 0:00:49]} 31. Kh2 {[%clk 0:01:08]}  e4 {[%clk 0:00:45]} 32. g3 {[%clk 0:01:04]}  Nd3 {[%clk 0:00:45]} 33. Bd4 {[%clk 0:01:02]}  Nxb4 {[%clk 0:00:12]} 34. Qe2 {[%clk 0:00:58]}  Nd3 {[%clk 0:00:11]} 35. Qh5 {[%clk 0:00:54]}  Ne5 {[%clk 0:00:03]} 36. Qxh6 {[%clk 0:00:52]}  Nf3+ {[%clk 0:00:02]} 37. Kg2 {[%clk 0:00:48]}  Nxd4 {[%clk 0:00:03]} 38. f6 {[%clk 0:00:31]}  Qf7 {[%clk 0:00:03]} 39. Qxg5+ {[%clk 0:00:30]}  Kf8 {[%clk 0:00:04]} 40. Qh6+ {[%clk 0:00:18]}  Ke8 {[%clk 0:00:03]} 41. Qf4 {[%clk 0:00:18]}  Kd7 {[%clk 0:00:02]} 42. g4 {[%clk 0:00:16]}  Nf3 {[%clk 0:00:02]} 43. Qf5+ {[%clk 0:00:13]}  Kd8 {[%clk 0:00:01]} 44. g5 {[%clk 0:00:12]} 1-0


[Site "https://www.chess.com"]

[Event "Titled Tuesday Blitz June 29 2021"]
[White "vinodchess1981"]
[Black "switlave"]
[WhiteElo "2274"]
[BlackElo "2474"]
[Result "1-0"]
[Round "07"]
[TimeControl "180+1"]
[Date "2021.06.29"]
[WhiteClock "0:00:13"]
[BlackClock "0:00:12"]

1. e4 {[%clk 0:03:00]}  c5 {[%clk 0:02:58]} 2. Nf3 {[%clk 0:03:00]}  d6 {[%clk 0:02:58]} 3. d4 {[%clk 0:02:59]}  cxd4 {[%clk 0:02:58]} 4. Nxd4 {[%clk 0:03:00]}  Nf6 {[%clk 0:02:58]} 5. Nc3 {[%clk 0:03:00]}  g6 {[%clk 0:02:56]} 6. Be3 {[%clk 0:02:55]}  Bg7 {[%clk 0:02:56]} 7. f3 {[%clk 0:02:54]}  O-O {[%clk 0:02:54]} 8. Qd2 {[%clk 0:02:51]}  Nc6 {[%clk 0:02:49]} 9. O-O-O {[%clk 0:02:49]}  Bd7 {[%clk 0:02:38]} 10. g4 {[%clk 0:02:46]}  Rc8 {[%clk 0:02:29]} 11. Kb1 {[%clk 0:02:45]}  Ne5 {[%clk 0:02:25]} 12. h4 {[%clk 0:02:43]}  h5 {[%clk 0:02:20]} 13. g5 {[%clk 0:02:41]}  Ne8 {[%clk 0:02:16]} 14. f4 {[%clk 0:02:36]}  Ng4 {[%clk 0:02:14]} 15. Bg1 {[%clk 0:02:34]}  Nc7 {[%clk 0:02:05]} 16. Be2 {[%clk 0:02:23]}  b5 {[%clk 0:01:52]} 17. f5 {[%clk 0:01:58]}  b4 {[%clk 0:01:43]} 18. Nd5 {[%clk 0:01:51]}  Nxd5 {[%clk 0:01:41]} 19. exd5 {[%clk 0:01:51]}  Bxf5 {[%clk 0:01:31]} 20. Nxf5 {[%clk 0:01:47]}  gxf5 {[%clk 0:01:31]} 21. Bd3 {[%clk 0:01:40]}  e6 {[%clk 0:01:24]} 22. dxe6 {[%clk 0:01:24]}  fxe6 {[%clk 0:01:25]} 23. Ba6 {[%clk 0:01:23]}  Rc6 {[%clk 0:01:22]} 24. Bb5 {[%clk 0:01:22]}  Rb6 {[%clk 0:00:59]} 25. Bxb6 {[%clk 0:00:41]}  Qxb6 {[%clk 0:01:00]} 26. Bd7 {[%clk 0:00:41]}  d5 {[%clk 0:00:56]} 27. Rhe1 {[%clk 0:00:38]}  Bc3 {[%clk 0:00:49]} 28. Bxe6+ {[%clk 0:00:20]}  Kg7 {[%clk 0:00:48]} 29. Qxd5 {[%clk 0:00:19]}  Bxe1 {[%clk 0:00:44]} 30. Rxe1 {[%clk 0:00:20]}  Qf2 {[%clk 0:00:30]} 31. Rd1 {[%clk 0:00:18]}  Qxh4 {[%clk 0:00:28]} 32. Qd7+ {[%clk 0:00:17]}  Kh8 {[%clk 0:00:27]} 33. Qe7 {[%clk 0:00:17]}  Rb8 {[%clk 0:00:10]} 34. Rd8+ {[%clk 0:00:13]}  Rxd8 {[%clk 0:00:11]} 35. Qxd8+ {[%clk 0:00:13]}  Kg7 {[%clk 0:00:12]} 36. Qg8# {[%clk 0:00:13]} 1-0


[Site "https://www.chess.com"]

[Event "Titled Tuesday Blitz June 29 2021"]
[White "wonderfultime"]
[Black "suyu28"]
[WhiteElo "2857"]
[BlackElo "2622"]
[Result "1-0"]
[Round "07"]
[TimeControl "180+1"]
[Date "2021.06.29"]
[WhiteClock "0:00:12"]
[BlackClock "0:00:03"]

1. d4 {[%clk 0:03:00]}  d5 {[%clk 0:02:59]} 2. Nf3 {[%clk 0:03:01]}  Nf6 {[%clk 0:02:59]} 3. Bf4 {[%clk 0:03:01]}  c5 {[%clk 0:02:59]} 4. c3 {[%clk 0:03:01]}  Nc6 {[%clk 0:03:00]} 5. e3 {[%clk 0:03:01]}  Qb6 {[%clk 0:02:59]} 6. Qc2 {[%clk 0:03:01]}  cxd4 {[%clk 0:02:56]} 7. exd4 {[%clk 0:02:58]}  Bg4 {[%clk 0:02:56]} 8. Nbd2 {[%clk 0:02:52]}  e6 {[%clk 0:02:55]} 9. Bd3 {[%clk 0:02:49]}  Be7 {[%clk 0:02:55]} 10. O-O {[%clk 0:02:45]}  O-O {[%clk 0:02:55]} 11. Ne5 {[%clk 0:02:41]}  Bh5 {[%clk 0:02:52]} 12. Bg5 {[%clk 0:02:41]}  Rfc8 {[%clk 0:01:49]} 13. Nxc6 {[%clk 0:02:12]}  bxc6 {[%clk 0:01:47]} 14. Bxh7+ {[%clk 0:02:09]}  Nxh7 {[%clk 0:01:44]} 15. Bxe7 {[%clk 0:02:08]}  Bg6 {[%clk 0:01:43]} 16. Qc1 {[%clk 0:02:08]}  f6 {[%clk 0:01:39]} 17. Re1 {[%clk 0:02:07]}  Kf7 {[%clk 0:01:38]} 18. Bd6 {[%clk 0:02:02]}  Ng5 {[%clk 0:01:38]} 19. Bf4 {[%clk 0:01:57]}  Ne4 {[%clk 0:01:37]} 20. Nb3 {[%clk 0:01:55]}  c5 {[%clk 0:01:30]} 21. f3 {[%clk 0:01:52]}  cxd4 {[%clk 0:01:29]} 22. fxe4 {[%clk 0:01:53]}  dxc3+ {[%clk 0:01:30]} 23. Be3 {[%clk 0:01:53]}  cxb2 {[%clk 0:01:23]} 24. Qxb2 {[%clk 0:01:53]}  Qb7 {[%clk 0:01:23]} 25. exd5 {[%clk 0:01:52]}  Qxd5 {[%clk 0:01:23]} 26. Rad1 {[%clk 0:01:53]}  Qh5 {[%clk 0:01:22]} 27. Qf2 {[%clk 0:01:45]}  Rc2 {[%clk 0:01:19]} 28. Rd2 {[%clk 0:01:45]}  Rac8 {[%clk 0:01:19]} 29. h3 {[%clk 0:01:39]}  Be4 {[%clk 0:01:18]} 30. Ree2 {[%clk 0:01:23]}  Rxd2 {[%clk 0:00:51]} 31. Rxd2 {[%clk 0:01:24]}  Bd5 {[%clk 0:00:48]} 32. Qg3 {[%clk 0:01:14]}  a6 {[%clk 0:00:42]} 33. Bd4 {[%clk 0:01:08]}  Rc4 {[%clk 0:00:34]} 34. Kh2 {[%clk 0:01:07]}  Qg6 {[%clk 0:00:29]} 35. Qxg6+ {[%clk 0:01:03]}  Kxg6 {[%clk 0:00:30]} 36. Kg3 {[%clk 0:00:58]}  Kf5 {[%clk 0:00:29]} 37. Kf2 {[%clk 0:00:57]}  e5 {[%clk 0:00:29]} 38. Be3 {[%clk 0:00:56]}  Bf7 {[%clk 0:00:28]} 39. Nc5 {[%clk 0:00:55]}  a5 {[%clk 0:00:25]} 40. Kf3 {[%clk 0:00:53]}  Rc3 {[%clk 0:00:22]} 41. Rd7 {[%clk 0:00:49]}  Kg6 {[%clk 0:00:21]} 42. a4 {[%clk 0:00:42]}  f5 {[%clk 0:00:21]} 43. g3 {[%clk 0:00:39]}  Be8 {[%clk 0:00:12]} 44. Rd6+ {[%clk 0:00:38]}  Kf7 {[%clk 0:00:12]} 45. Kf2 {[%clk 0:00:36]}  Rc2+ {[%clk 0:00:12]} 46. Rd2 {[%clk 0:00:36]}  Rc3 {[%clk 0:00:13]} 47. Nb7 {[%clk 0:00:29]}  Bxa4 {[%clk 0:00:12]} 48. Nxa5 {[%clk 0:00:30]}  g5 {[%clk 0:00:12]} 49. Bxg5 {[%clk 0:00:29]}  Kg6 {[%clk 0:00:12]} 50. h4 {[%clk 0:00:28]}  Kh5 {[%clk 0:00:12]} 51. Re2 {[%clk 0:00:18]}  Kg4 {[%clk 0:00:13]} 52. Rxe5 {[%clk 0:00:19]}  Rf3+ {[%clk 0:00:13]} 53. Ke1 {[%clk 0:00:19]}  Rxg3 {[%clk 0:00:13]} 54. Nc4 {[%clk 0:00:18]}  Bc6 {[%clk 0:00:07]} 55. Ne3+ {[%clk 0:00:17]}  Kh5 {[%clk 0:00:07]} 56. Nxf5 {[%clk 0:00:17]}  Rg1+ {[%clk 0:00:07]} 57. Kf2 {[%clk 0:00:16]}  Rg2+ {[%clk 0:00:07]} 58. Kf1 {[%clk 0:00:16]}  Rc2 {[%clk 0:00:07]} 59. Ne3 {[%clk 0:00:12]}  Rc1+ {[%clk 0:00:04]} 60. Kf2 {[%clk 0:00:12]}  Kg6 {[%clk 0:00:04]} 61. Re6+ {[%clk 0:00:12]}  Kf7 {[%clk 0:00:05]} 62. Rf6+ {[%clk 0:00:13]}  Kg8 {[%clk 0:00:05]} 63. Nf5 {[%clk 0:00:13]}  Rc2+ {[%clk 0:00:04]} 64. Ke3 {[%clk 0:00:14]}  Bd7 {[%clk 0:00:04]} 65. Nh6+ {[%clk 0:00:13]}  Kg7 {[%clk 0:00:02]} 66. Rf7+ {[%clk 0:00:13]}  Kh8 {[%clk 0:00:03]} 67. Bf6# {[%clk 0:00:12]} 1-0


[Site "https://www.chess.com"]

[Event "Titled Tuesday Blitz June 29 2021"]
[White "zmeeed67"]
[Black "rynos0411"]
[WhiteElo "2594"]
[BlackElo "2464"]
[Result "1-0"]
[Round "07"]
[TimeControl "180+1"]
[Date "2021.06.29"]
[WhiteClock "0:00:39"]
[BlackClock "0:01:00"]

1. d4 {[%clk 0:03:00]}  Nf6 {[%clk 0:02:56]} 2. c4 {[%clk 0:03:01]}  e6 {[%clk 0:02:56]} 3. Nc3 {[%clk 0:03:01]}  d5 {[%clk 0:02:56]} 4. cxd5 {[%clk 0:03:02]}  Nxd5 {[%clk 0:02:56]} 5. e4 {[%clk 0:03:02]}  Nxc3 {[%clk 0:02:57]} 6. bxc3 {[%clk 0:03:03]}  c5 {[%clk 0:02:57]} 7. Nf3 {[%clk 0:03:04]}  cxd4 {[%clk 0:02:58]} 8. cxd4 {[%clk 0:03:05]}  Bb4+ {[%clk 0:02:58]} 9. Bd2 {[%clk 0:03:05]}  Bxd2+ {[%clk 0:02:59]} 10. Qxd2 {[%clk 0:03:06]}  O-O {[%clk 0:03:00]} 11. Rd1 {[%clk 0:03:05]}  Nd7 {[%clk 0:03:00]} 12. Bd3 {[%clk 0:03:05]}  b6 {[%clk 0:03:00]} 13. O-O {[%clk 0:03:06]}  Bb7 {[%clk 0:03:01]} 14. Rfe1 {[%clk 0:03:06]}  Rc8 {[%clk 0:03:01]} 15. Bb1 {[%clk 0:03:07]}  Qe7 {[%clk 0:02:56]} 16. d5 {[%clk 0:03:01]}  exd5 {[%clk 0:02:36]} 17. exd5 {[%clk 0:03:01]}  Qd6 {[%clk 0:02:36]} 18. Ng5 {[%clk 0:02:24]}  Nf6 {[%clk 0:02:26]} 19. Qd3 {[%clk 0:02:06]}  g6 {[%clk 0:02:09]} 20. Qd4 {[%clk 0:01:24]}  Qxd5 {[%clk 0:01:46]} 21. Qxd5 {[%clk 0:01:13]}  Bxd5 {[%clk 0:01:46]} 22. Nh3 {[%clk 0:00:56]}  Rfe8 {[%clk 0:01:27]} 23. Rxe8+ {[%clk 0:00:50]}  Rxe8 {[%clk 0:01:27]} 24. Nf4 {[%clk 0:00:50]}  Bc6 {[%clk 0:01:27]} 25. h3 {[%clk 0:00:48]}  Kg7 {[%clk 0:01:20]} 26. g4 {[%clk 0:00:48]}  h6 {[%clk 0:01:18]} 27. Kh2 {[%clk 0:00:48]}  Be4 {[%clk 0:01:13]} 28. Kg3 {[%clk 0:00:42]}  Bxb1 {[%clk 0:01:12]} 29. Rxb1 {[%clk 0:00:43]}  Ne4+ {[%clk 0:01:09]} 30. Kg2 {[%clk 0:00:43]}  Rd8 {[%clk 0:01:06]} 31. Re1 {[%clk 0:00:40]}  f5 {[%clk 0:01:00]} 32. Ne6+ {[%clk 0:00:39]} 1-0


[Site "https://www.chess.com"]

[Event "Titled Tuesday Blitz June 29 2021"]
[White "AnotherGrumpy"]
[Black "Rodalquilar"]
[WhiteElo "2583"]
[BlackElo "2746"]
[Result "1-0"]
[Round "08"]
[TimeControl "180+1"]
[Date "2021.06.29"]
[WhiteClock "0:00:21"]
[BlackClock "0:00:43"]

1. d4 {[%clk 0:03:00]}  Nf6 {[%clk 0:02:59]} 2. c4 {[%clk 0:03:01]}  e6 {[%clk 0:02:59]} 3. Nf3 {[%clk 0:03:00]}  d5 {[%clk 0:02:59]} 4. Nc3 {[%clk 0:03:00]}  Bb4 {[%clk 0:02:59]} 5. Bg5 {[%clk 0:03:00]}  h6 {[%clk 0:02:58]} 6. Bxf6 {[%clk 0:02:57]}  Qxf6 {[%clk 0:02:59]} 7. e3 {[%clk 0:02:57]}  O-O {[%clk 0:03:00]} 8. Bd3 {[%clk 0:02:55]}  dxc4 {[%clk 0:02:58]} 9. Bxc4 {[%clk 0:02:56]}  c5 {[%clk 0:02:59]} 10. O-O {[%clk 0:02:55]}  cxd4 {[%clk 0:02:58]} 11. Nxd4 {[%clk 0:02:36]}  Bxc3 {[%clk 0:02:27]} 12. bxc3 {[%clk 0:02:37]}  Bd7 {[%clk 0:02:27]} 13. Rb1 {[%clk 0:02:36]}  Rc8 {[%clk 0:02:22]} 14. Be2 {[%clk 0:02:30]}  e5 {[%clk 0:02:06]} 15. Nb5 {[%clk 0:02:27]}  Bc6 {[%clk 0:02:00]} 16. Qd6 {[%clk 0:02:04]}  Qxd6 {[%clk 0:01:56]} 17. Nxd6 {[%clk 0:02:05]}  Rc7 {[%clk 0:01:56]} 18. Bc4 {[%clk 0:01:55]}  Kf8 {[%clk 0:01:42]} 19. f4 {[%clk 0:01:52]}  e4 {[%clk 0:01:38]} 20. f5 {[%clk 0:01:50]}  Ke7 {[%clk 0:01:30]} 21. Nxf7 {[%clk 0:01:45]}  Be8 {[%clk 0:01:29]} 22. Ne5 {[%clk 0:01:45]}  Kd6 {[%clk 0:01:08]} 23. f6 {[%clk 0:00:35]}  gxf6 {[%clk 0:00:56]} 24. Rxf6+ {[%clk 0:00:27]}  Kxe5 {[%clk 0:00:56]} 25. Re6+ {[%clk 0:00:26]}  Kf5 {[%clk 0:00:56]} 26. Rf1+ {[%clk 0:00:26]}  Kg5 {[%clk 0:00:57]} 27. Rxe8 {[%clk 0:00:20]}  Rxc4 {[%clk 0:00:56]} 28. Rg8+ {[%clk 0:00:20]}  Kh4 {[%clk 0:00:42]} 29. Rf4+ {[%clk 0:00:20]}  Kh5 {[%clk 0:00:42]} 30. Rf5+ {[%clk 0:00:20]}  Kh4 {[%clk 0:00:43]} 31. g3+ {[%clk 0:00:20]}  Kh3 {[%clk 0:00:43]} 32. Rh5# {[%clk 0:00:21]} 1-0


[Site "https://www.chess.com"]

[Event "Titled Tuesday Blitz June 29 2021"]
[White "Carnivoras"]
[Black "IMTominho"]
[WhiteElo "2655"]
[BlackElo "2834"]
[Result "1-0"]
[Round "08"]
[TimeControl "180+1"]
[Date "2021.06.29"]
[WhiteClock "0:00:09"]
[BlackClock "0:00:10"]

1. d4 {[%clk 0:03:00]}  d5 {[%clk 0:03:00]} 2. c4 {[%clk 0:03:00]}  c6 {[%clk 0:03:00]} 3. Nc3 {[%clk 0:03:00]}  Nf6 {[%clk 0:03:00]} 4. Bg5 {[%clk 0:02:58]}  dxc4 {[%clk 0:02:59]} 5. e4 {[%clk 0:02:58]}  b5 {[%clk 0:02:57]} 6. e5 {[%clk 0:02:57]}  b4 {[%clk 0:02:57]} 7. Na4 {[%clk 0:02:11]}  Ne4 {[%clk 0:02:51]} 8. Be3 {[%clk 0:02:11]}  Qa5 {[%clk 0:02:49]} 9. Bxc4 {[%clk 0:02:09]}  b3+ {[%clk 0:02:49]} 10. Kf1 {[%clk 0:02:08]}  Qxa4 {[%clk 0:02:47]} 11. axb3 {[%clk 0:02:06]}  Qb4 {[%clk 0:02:45]} 12. f3 {[%clk 0:02:04]}  Nd6 {[%clk 0:02:42]} 13. exd6 {[%clk 0:02:01]}  exd6 {[%clk 0:02:43]} 14. Ne2 {[%clk 0:01:55]}  d5 {[%clk 0:02:42]} 15. Bd3 {[%clk 0:01:55]}  Be7 {[%clk 0:02:40]} 16. Qc2 {[%clk 0:01:48]}  h6 {[%clk 0:02:34]} 17. Kf2 {[%clk 0:01:19]}  O-O {[%clk 0:02:28]} 18. Rhc1 {[%clk 0:01:12]}  Bh4+ {[%clk 0:02:22]} 19. Kg1 {[%clk 0:01:12]}  Re8 {[%clk 0:02:21]} 20. Qd2 {[%clk 0:01:03]}  Qe7 {[%clk 0:02:05]} 21. Bf4 {[%clk 0:00:49]}  Bb7 {[%clk 0:01:54]} 22. Ng3 {[%clk 0:00:45]}  Bg5 {[%clk 0:01:48]} 23. Re1 {[%clk 0:00:40]}  Qd8 {[%clk 0:01:37]} 24. Bxg5 {[%clk 0:00:39]}  Rxe1+ {[%clk 0:01:36]} 25. Rxe1 {[%clk 0:00:38]}  hxg5 {[%clk 0:01:37]} 26. Qxg5 {[%clk 0:00:35]}  Nd7 {[%clk 0:01:36]} 27. Qxd8+ {[%clk 0:00:23]}  Rxd8 {[%clk 0:01:36]} 28. Nf5 {[%clk 0:00:23]}  Kf8 {[%clk 0:01:37]} 29. Ra1 {[%clk 0:00:21]}  c5 {[%clk 0:01:19]} 30. Rxa7 {[%clk 0:00:18]}  Bc6 {[%clk 0:01:19]} 31. Rc7 {[%clk 0:00:18]}  Ba8 {[%clk 0:01:13]} 32. dxc5 {[%clk 0:00:18]}  Ne5 {[%clk 0:01:13]} 33. Bf1 {[%clk 0:00:09]}  d4 {[%clk 0:01:13]} 34. f4 {[%clk 0:00:09]}  Nd7 {[%clk 0:01:03]} 35. Nd6 {[%clk 0:00:09]}  Bd5 {[%clk 0:00:59]} 36. b4 {[%clk 0:00:07]}  Nf6 {[%clk 0:00:56]} 37. b5 {[%clk 0:00:07]}  Be6 {[%clk 0:00:50]} 38. b6 {[%clk 0:00:06]}  Nd5 {[%clk 0:00:50]} 39. Ra7 {[%clk 0:00:06]}  Nxf4 {[%clk 0:00:39]} 40. b7 {[%clk 0:00:06]}  Bd5 {[%clk 0:00:39]} 41. Bc4 {[%clk 0:00:06]}  Bc6 {[%clk 0:00:37]} 42. b4 {[%clk 0:00:05]}  d3 {[%clk 0:00:37]} 43. b5 {[%clk 0:00:05]}  d2 {[%clk 0:00:36]} 44. Bb3 {[%clk 0:00:06]}  Bd5 {[%clk 0:00:36]} 45. Bd1 {[%clk 0:00:05]}  g5 {[%clk 0:00:29]} 46. c6 {[%clk 0:00:05]}  Kg7 {[%clk 0:00:29]} 47. c7 {[%clk 0:00:05]}  Rxd6 {[%clk 0:00:29]} 48. b8=Q {[%clk 0:00:05]}  Re6 {[%clk 0:00:27]} 49. c8=Q {[%clk 0:00:05]}  Re1+ {[%clk 0:00:16]} 50. Kf2 {[%clk 0:00:05]}  Nd3+ {[%clk 0:00:17]} 51. Kg3 {[%clk 0:00:06]}  Re3+ {[%clk 0:00:16]} 52. Bf3 {[%clk 0:00:06]}  Rxf3+ {[%clk 0:00:10]} 53. gxf3 {[%clk 0:00:06]}  d1=Q {[%clk 0:00:11]} 54. Qg8+ {[%clk 0:00:06]}  Kf6 {[%clk 0:00:11]} 55. Qbd8+ {[%clk 0:00:07]}  Ke5 {[%clk 0:00:12]} 56. Qdxg5+ {[%clk 0:00:07]}  Kd4 {[%clk 0:00:12]} 57. Ra4+ {[%clk 0:00:07]}  Kc3 {[%clk 0:00:10]} 58. Qc8+ {[%clk 0:00:07]}  Kb3 {[%clk 0:00:10]} 59. Qxd5+ {[%clk 0:00:07]}  Kxa4 {[%clk 0:00:10]} 60. Qcc4+ {[%clk 0:00:07]}  Ka5 {[%clk 0:00:10]} 61. b6+ {[%clk 0:00:08]}  Kxb6 {[%clk 0:00:10]} 62. Qcb5+ {[%clk 0:00:08]}  Kc7 {[%clk 0:00:10]} 63. Qbb7# {[%clk 0:00:09]} 1-0


[Site "https://www.chess.com"]